bitfinex-derivatives/quotes_ETHF0:USTF0_20260117
["timestamp","ask_amount","ask_price","bid_price","bid_amount"]
[1768670035606,0.95664908,3326.2,3324.8,1.10220695]
[1768670035804,0.95664908,3326.1,3324.8,1.10220695]
[1768670035998,0.12985815,3326.5,3324.8,1.10220695]
[1768670036213,0.95662128,3326.4,3324.8,1.10220695]
[1768670036413,0.12985815,3326.5,3324.8,1.10220695]
[1768670036414,0.95662128,3326.3,3324.8,1.10220695]
[1768670036609,0.95662128,3326.2,3324.8,1.10220695]
[1768670036806,0.12985815,3326.5,3324.8,1.10220695]
[1768670037010,0.95655947,3326.4,3324.8,1.10220695]
[1768670037210,0.95655947,3326.3,3324.8,1.10220695]
[1768670037414,0.95655947,3326.2,3324.8,1.10220695]
[1768670037713,0.12985815,3326.5,3324.8,1.10220695]
[1768670037909,0.95644226,3326.4,3324.8,1.10220695]
[1768670038111,0.95644226,3326.3,3324.8,1.10220695]
[1768670038307,0.95644226,3326.2,3324.8,1.10220695]
[1768670038506,0.12985815,3326.5,3324.8,1.10220695]
[1768670038706,0.95634028,3326.4,3324.8,1.10220695]
[1768670038915,0.95634028,3326.3,3324.8,1.10220695]
[1768670039214,0.12985815,3326.5,3324.8,1.10220695]
[1768670039415,0.95632427,3326.4,3324.8,1.10220695]
[1768670039605,0.95632427,3326.3,3324.8,1.10220695]
[1768670039806,0.12985815,3326.5,3324.8,1.10220695]
[1768670040017,0.95632428,3326.4,3324.8,1.10220695]
[1768670040206,0.95632428,3326.3,3324.8,1.10220695]
[1768670040406,0.95632428,3326.2,3324.8,1.10220695]
[1768670040607,0.12985815,3326.5,3324.8,1.10220695]
[1768670040807,0.95640535,3326.4,3324.8,1.10220695]
[1768670041099,0.95640535,3326.3,3324.8,1.10220695]
[1768670041301,0.95640535,3326.2,3324.8,1.10220695]
[1768670041516,0.12985815,3326.5,3324.8,1.10220695]
[1768670041816,0.95646008,3326.4,3324.8,1.10220695]
[1768670042018,0.95646008,3326.3,3324.8,1.10220695]
[1768670042218,0.95646008,3326.2,3324.8,1.10220695]
[1768670042417,0.12985815,3326.5,3324.8,1.10220695]
[1768670042611,0.95654916,3326.4,3324.8,1.10220695]
[1768670042811,0.12985815,3326.5,3324.8,1.10220695]
[1768670047221,0.95690147,3326.4,3324.8,1.10220695]
[1768670047522,0.12985815,3326.5,3324.8,1.10220695]
[1768670047724,0.95689601,3326.4,3324.8,1.10220695]
[1768670048025,0.12985815,3326.5,3324.8,1.10220695]
[1768670048216,0.95689604,3326.4,3324.8,1.10220695]
[1768670048417,0.12985815,3326.5,3324.8,1.10220695]
[1768670048618,0.95702623,3326.4,3324.8,1.10220695]
[1768670048820,0.12985815,3326.5,3324.8,1.10220695]
[1768670049026,0.95702622,3326.4,3324.8,1.10220695]
[1768670049216,0.12985815,3326.5,3324.8,1.10220695]
[1768670049417,0.95712967,3326.4,3324.8,1.10220695]
[1768670049614,0.12985815,3326.5,3324.8,1.10220695]
[1768670049819,0.95712965,3326.4,3324.8,1.10220695]
[1768670050024,0.12985815,3326.5,3324.9,0.13629313]
[1768670050225,0.95722575,3326.4,3324.9,0.13629313]
[1768670050429,0.12985815,3326.5,3324.9,0.13629313]
[1768670050619,0.957228,3326.4,3324.9,0.13629313]
[1768670050822,0.12985815,3326.5,3324.9,0.13629313]
[1768670051118,0.95722802,3326.4,3324.9,0.13629313]
[1768670051415,0.12985815,3326.5,3324.9,0.13629313]
[1768670051621,0.95735519,3326.4,3324.9,0.13629313]
[1768670051815,0.12985815,3326.5,3324.9,0.13629313]
[1768670052124,0.95735519,3326.4,3324.9,0.13629313]
[1768670052320,0.12985815,3326.5,3324.9,0.13629313]
[1768670052622,0.95741965,3326.4,3324.9,0.13629313]
[1768670052922,0.12985815,3326.5,3324.9,0.13629313]
[1768670053122,0.95741964,3326.4,3324.9,0.13629313]
[1768670053331,0.12985815,3326.5,3324.9,0.13629313]
[1768670053517,1.08735933,3326.4,3324.9,0.13629313]
[1768670053722,0.12985815,3326.4,3324.8,0.96591382]
[1768670054527,0.12985815,3326.4,3324.4,0.13629313]
[1768670054832,0.96591382,3326.9,3324.4,0.13629313]
[1768670054833,0.12985815,3326.2,3324.4,0.13629313]
[1768670061839,0.13186683,3326.0,3324.1,0.15046]
[1768670065344,0.13186683,3326.0,3324.1,0.28609731]
[1768670071343,0.13186683,3325.9,3324.6,0.96561571]
[1768670072842,0.95624184,3325.8,3324.6,0.96561571]
[1768670073050,0.13186683,3325.9,3324.6,0.96561571]
[1768670073244,0.95624184,3325.8,3324.6,0.96561571]
[1768670073453,0.13186683,3325.9,3324.6,0.96561571]
[1768670073645,0.95623316,3325.8,3324.6,0.96561571]
[1768670073943,0.13186683,3325.9,3324.6,0.96561571]
[1768670074144,0.95623316,3325.8,3324.6,0.96561571]
[1768670074339,0.13186683,3325.9,3324.6,0.96561571]
[1768670074540,0.95624875,3325.8,3324.6,0.96561571]
[1768670074740,0.13186683,3325.9,3324.8,0.96561571]
[1768670074939,0.95624827,3325.8,3324.8,0.96561571]
[1768670075140,0.13186683,3325.9,3324.8,0.96561571]
[1768670075339,0.95624827,3325.8,3324.8,0.96561571]
[1768670075539,0.13186683,3325.9,3324.8,0.96561571]
[1768670075736,0.95624563,3325.8,3325.0,0.96561571]
[1768670075951,0.13186683,3325.9,3325.0,0.96561571]
[1768670076150,0.95624516,3325.8,3325.0,0.96561571]
[1768670076339,0.13186683,3325.9,3325.0,0.96561571]
[1768670076540,0.95625198,3325.8,3325.0,0.96561571]
[1768670076739,0.13186683,3325.9,3325.0,0.96561571]
[1768670076946,0.95625198,3325.8,3325.0,0.96561571]
[1768670077147,0.13186683,3325.9,3325.0,0.96561571]
[1768670077349,0.95626678,3325.8,3325.0,0.96561571]
[1768670077548,0.29359409,3326.3,3325.0,0.96561571]
[1768670077750,1.20604724,3326.2,3325.0,0.96561571]
[1768670077948,0.95626661,3326.1,3325.0,0.96561571]
[1768670078149,0.95626661,3326.0,3325.0,0.96561571]
[1768670078348,0.95626661,3325.9,3325.0,0.96561571]
[1768670078548,0.95626661,3325.8,3325.0,0.96561571]
[1768670078852,0.14322409,3326.2,3325.0,0.96561571]
[1768670079155,0.95629009,3326.1,3325.0,0.96561571]
[1768670079342,0.95629009,3326.0,3325.0,0.96561571]
[1768670079544,0.95629009,3325.9,3325.0,0.96561571]
[1768670079743,0.95629009,3325.8,3325.0,0.96561571]
[1768670079939,0.14322409,3326.2,3325.0,0.96561571]
[1768670080147,0.95632246,3326.1,3325.0,0.96561571]
[1768670080349,0.95632246,3326.0,3325.0,0.96561571]
[1768670080649,0.95632246,3325.9,3325.0,0.96561571]
[1768670080850,0.95632246,3325.8,3325.0,0.96561571]
[1768670081044,0.14322409,3326.2,3325.0,0.96561571]
[1768670081246,0.95636457,3326.1,3325.0,0.96561571]
[1768670081447,0.95636457,3326.0,3325.0,0.96561571]
[1768670081648,0.95636457,3325.9,3325.0,0.96561571]
[1768670081843,0.95636457,3325.8,3325.0,0.96561571]
[1768670082045,0.14322409,3326.2,3325.0,0.96561571]
[1768670082245,0.95640811,3326.1,3325.0,0.96561571]
[1768670082446,0.95640811,3326.0,3325.0,0.96561571]
[1768670082647,0.95640811,3325.9,3325.0,0.96561571]
[1768670082955,0.14322409,3326.2,3324.8,0.96561571]
[1768670083156,0.95648604,3326.1,3324.8,0.96561571]
[1768670083352,0.95648604,3326.0,3324.8,0.96561571]
[1768670093463,0.13149318,3325.9,3324.1,0.28459182]
[1768670093661,0.13149318,3325.9,3324.6,0.96561571]
[1768670096558,0.13149318,3325.9,3324.5,0.96561571]
[1768670097754,0.13149318,3325.9,3324.7,0.96561571]
[1768670102158,0.13149318,3325.9,3324.1,0.13413182]
[1768670102364,0.13149318,3325.9,3324.6,0.96561571]
[1768670103258,0.28186318,3326.3,3325.1,0.96561571]
[1768670103451,1.21220918,3326.2,3325.1,0.96561571]
[1768670103652,1.21220918,3326.1,3325.1,0.96561571]
[1768670103852,0.95994276,3326.0,3325.1,0.96561571]
[1768670104067,0.95994276,3325.9,3325.1,0.96561571]
[1768670104267,0.28186318,3326.3,3325.1,0.96561571]
[1768670104566,1.2122094,3326.2,3325.1,0.96561571]
[1768670104769,1.2122094,3326.1,3325.1,0.96561571]
[1768670104959,0.95994278,3326.0,3325.1,0.96561571]
[1768670105257,0.95994278,3325.9,3325.1,0.96561571]
[1768670105459,0.28186318,3326.3,3325.1,0.96561571]
[1768670105659,1.21220784,3326.2,3325.1,0.96561571]
[1768670105857,1.21220784,3326.1,3325.1,0.96561571]
[1768670106063,0.95994157,3326.0,3325.1,0.96561571]
[1768670106263,0.95994157,3325.9,3325.1,0.96561571]
[1768670106460,0.13149318,3326.1,3324.8,0.96561571]
[1768670106665,0.959941,3326.0,3324.8,0.96561571]
[1768670106869,0.959941,3325.9,3324.8,0.96561571]
[1768670107168,0.13149318,3326.1,3324.8,0.96561571]
[1768670107468,0.95994041,3326.0,3324.8,0.96561571]
[1768670107765,0.95994041,3325.9,3324.8,0.96561571]
[1768670107967,1.09710889,3326.1,3324.8,0.96561571]
[1768670108166,0.95993014,3326.0,3324.8,0.96561571]
[1768670108368,0.95993014,3325.9,3324.8,0.96561571]
[1768670108553,1.09710889,3326.1,3324.8,0.96561571]
[1768670108759,0.9599248,3326.0,3324.8,0.96561571]
[1768670108960,0.9599248,3325.9,3324.8,0.96561571]
[1768670109171,1.09710889,3326.1,3324.8,0.96561571]
[1768670109468,0.95992782,3326.0,3324.8,0.96561571]
[1768670109669,0.95992782,3325.9,3324.8,0.96561571]
[1768670109967,1.09710889,3326.1,3324.8,0.96561571]
[1768670110154,0.95993111,3326.0,3324.8,0.96561571]
[1768670110361,0.95993111,3325.9,3324.8,0.96561571]
[1768670110670,1.09710889,3326.1,3324.8,0.96561571]
[1768670110873,0.95992024,3326.0,3324.8,0.96561571]
[1768670111068,0.95992024,3325.9,3324.8,0.96561571]
[1768670111273,1.09710889,3326.1,3324.8,0.96561571]
[1768670111464,0.95991725,3326.0,3324.8,0.96561571]
[1768670111769,0.95991725,3325.9,3324.8,0.96561571]
[1768670112060,1.09710889,3326.1,3324.8,0.96561571]
[1768670112265,0.95991745,3326.0,3324.8,0.96561571]
[1768670112461,0.95991745,3325.9,3324.8,0.96561571]
[1768670112667,0.28186318,3326.3,3324.8,0.96561571]
[1768670112869,1.21217601,3326.2,3324.8,0.96561571]
[1768670113164,1.21217601,3326.1,3324.8,0.96561571]
[1768670113366,0.95991719,3326.0,3324.8,0.96561571]
[1768670113574,0.95991719,3325.9,3324.8,0.96561571]
[1768670113776,0.28186318,3326.3,3324.8,0.96561571]
[1768670113975,1.21217179,3326.2,3324.8,0.96561571]
[1768670114276,1.21217179,3326.1,3324.8,0.96561571]
[1768670114569,1.21217179,3326.0,3324.8,0.96561571]
[1768670114774,0.95991395,3325.9,3324.8,0.96561571]
[1768670114974,0.28186318,3326.3,3324.8,0.96561571]
[1768670115273,1.21216833,3326.2,3324.8,0.96561571]
[1768670115469,1.21216833,3326.1,3324.8,0.96561571]
[1768670115772,1.21216833,3326.0,3324.8,0.96561571]
[1768670115979,0.95991121,3325.9,3324.8,0.96561571]
[1768670116176,0.28186318,3326.3,3324.8,0.96561571]
[1768670116364,1.21345866,3326.2,3324.8,0.96561571]
[1768670116672,1.21345866,3326.1,3324.8,0.96561571]
[1768670116876,1.21345866,3326.0,3324.8,0.96561571]
[1768670117066,0.96120301,3325.9,3324.8,0.96561571]
[1768670117267,0.28186318,3326.3,3324.8,0.96561571]
[1768670117466,1.21345667,3326.2,3324.8,0.96561571]
[1768670117768,1.21345667,3326.1,3324.8,0.96561571]
[1768670118066,1.21345667,3326.0,3324.8,0.96561571]
[1768670118267,0.96120152,3325.9,3324.8,0.96561571]
[1768670118466,0.28186318,3326.3,3324.8,0.96561571]
[1768670118670,1.21345421,3326.2,3324.8,0.96561571]
[1768670118977,1.21345421,3326.1,3324.8,0.96561571]
[1768670119275,1.21345421,3326.0,3324.8,0.96561571]
[1768670119476,0.96119957,3325.9,3324.8,0.96561571]
[1768670119675,0.28186318,3326.3,3324.8,0.96561571]
[1768670119870,1.21345155,3326.2,3324.8,0.96561571]
[1768670120073,1.21345155,3326.1,3324.8,0.96561571]
[1768670120271,1.21345155,3326.0,3324.8,0.96561571]
[1768670120472,0.96119752,3325.9,3324.8,0.96561571]
[1768670120672,0.28186318,3326.3,3324.8,0.96561571]
[1768670120972,1.21344918,3326.2,3324.8,0.96561571]
[1768670121278,1.21344918,3326.1,3324.8,0.96561571]
[1768670121581,1.21344918,3326.0,3324.8,0.96561571]
[1768670121875,0.96119552,3325.9,3324.8,0.96561571]
[1768670122078,0.13795219,3326.2,3324.8,0.96561571]
[1768670122277,1.21344603,3326.1,3324.8,0.96561571]
[1768670122471,1.21344603,3326.0,3324.8,0.96561571]
[1768670122672,0.96119373,3325.9,3324.8,0.96561571]
[1768670122862,0.96119495,3325.8,3324.8,0.96561571]
[1768670123063,0.13795219,3326.0,3324.0,1.10499133]
[1768670123279,1.09914863,3325.9,3324.6,0.96561571]
[1768670123462,0.96119644,3325.8,3324.6,0.96561571]
[1768670123661,0.13795219,3325.9,3324.6,0.96561571]
[1768670123865,0.96119594,3325.8,3324.6,0.96561571]
[1768670124071,0.13795219,3325.7,3324.3,0.96561571]
[1768670124265,1.09918555,3325.7,3324.3,0.96561571]
[1768670124473,0.13795219,3325.7,3324.3,0.96561571]
[1768670126072,0.9611722,3325.6,3324.6,0.96561571]
[1768670126272,0.13795219,3325.7,3324.6,0.96561571]
[1768670126482,1.09898331,3325.6,3324.6,0.96561571]
[1768670126686,0.13795219,3325.6,3324.6,0.96561571]
[1768670133380,0.13795219,3325.6,3324.0,0.96572442]
[1768670138190,0.13795219,3325.6,3324.0,1.10241653]
[1768670142195,0.13795219,3325.6,3324.0,0.13669211]
[1768670147988,0.13795219,3325.6,3323.9,3.031]
[1768670157198,0.13795219,3325.6,3323.9,3.99672442]
[1768670157499,0.13795219,3325.6,3323.9,4.1323]
[1768670161601,0.13795219,3325.6,3324.0,0.13557558]
[1768670161900,0.29093457,3326.0,3324.4,0.13557558]
[1768670162092,0.96284316,3325.9,3324.4,0.13557558]
[1768670162293,0.29093457,3326.0,3324.4,0.13557558]
[1768670162294,0.96284316,3325.8,3324.4,0.13557558]
[1768670162494,0.96284316,3325.7,3324.4,0.13557558]
[1768670162694,0.29093457,3326.0,3324.4,0.13557558]
[1768670162895,0.96283042,3325.9,3324.4,0.13557558]
[1768670163095,0.96283042,3325.8,3324.4,0.13557558]
[1768670163295,0.96283042,3325.7,3324.4,0.13557558]
[1768670163509,0.29093457,3326.0,3324.4,0.13557558]
[1768670163696,0.96281968,3325.9,3324.4,0.13557558]
[1768670163896,0.96281968,3325.8,3324.4,0.13557558]
[1768670164097,0.96281968,3325.7,3324.4,0.13557558]
[1768670164298,0.29093457,3326.0,3324.4,0.13557558]
[1768670164504,0.96280854,3325.9,3324.4,0.13557558]
[1768670164696,0.29093457,3326.0,3324.4,0.13557558]
[1768670164697,0.96280854,3325.8,3324.4,0.13557558]
[1768670164896,0.96280854,3325.7,3324.4,0.13557558]
[1768670165097,0.29093457,3326.0,3324.4,0.13557558]
[1768670165299,0.9627965,3325.9,3324.4,0.13557558]
[1768670165498,0.9627965,3325.8,3324.4,0.13557558]
[1768670165708,0.9627965,3325.7,3324.4,0.13557558]
[1768670166009,0.29093457,3326.0,3324.4,0.13557558]
[1768670166198,0.96280451,3325.9,3324.4,0.13557558]
[1768670166397,0.96280451,3325.8,3324.4,0.13557558]
[1768670166599,0.96280451,3325.7,3324.4,0.13557558]
[1768670166898,0.29093457,3326.0,3324.4,0.13557558]
[1768670167193,0.96279769,3325.9,3324.4,0.13557558]
[1768670167495,0.96279769,3325.8,3324.4,0.13557558]
[1768670167695,0.96279769,3325.7,3324.4,0.13557558]
[1768670167896,0.29093457,3326.0,3324.4,0.13557558]
[1768670168096,0.96279165,3325.9,3324.4,0.13557558]
[1768670168395,0.96279165,3325.8,3324.4,0.13557558]
[1768670168593,0.96279165,3325.7,3324.4,0.13557558]
[1768670168899,0.29093457,3326.0,3324.4,0.13557558]
[1768670169100,0.96278564,3325.9,3324.4,0.13557558]
[1768670169301,0.96278564,3325.8,3324.4,0.13557558]
[1768670169503,0.96278564,3325.7,3324.4,0.13557558]
[1768670169699,0.29093457,3326.0,3324.4,0.13557558]
[1768670169901,0.9627796,3325.9,3324.4,0.13557558]
[1768670170202,0.9627796,3325.8,3324.4,0.13557558]
[1768670170408,0.9627796,3325.7,3324.4,0.13557558]
[1768670170609,0.29093457,3326.0,3324.4,0.13557558]
[1768670170799,0.96277206,3325.9,3324.4,0.13557558]
[1768670171107,0.96277206,3325.8,3324.4,0.13557558]
[1768670171309,0.96277206,3325.7,3324.4,0.13557558]
[1768670171602,0.29093457,3326.0,3324.4,0.13557558]
[1768670171798,0.96275981,3325.9,3324.4,0.13557558]
[1768670172000,0.96275981,3325.8,3324.4,0.13557558]
[1768670172208,0.96275981,3325.7,3324.4,0.13557558]
[1768670172409,0.29093457,3326.0,3324.4,0.13557558]
[1768670172611,0.96274586,3325.9,3324.4,0.13557558]
[1768670172807,0.96274586,3325.8,3324.4,0.13557558]
[1768670173007,0.96274586,3325.7,3324.4,0.13557558]
[1768670173208,0.96274586,3325.6,3324.4,0.13557558]
[1768670173401,0.96274586,3325.5,3324.4,0.13557558]
[1768670173710,0.14055457,3325.9,3324.4,0.13557558]
[1768670173898,1.10328499,3325.8,3324.3,0.96572442]
[1768670174100,0.96273042,3325.7,3324.3,0.96572442]
[1768670175905,0.96273042,3325.7,3324.7,0.96572442]
[1768670176409,0.96273042,3325.6,3324.7,0.96572442]
[1768670176609,0.96273042,3325.5,3324.7,0.96572442]
[1768670176811,0.15038,3326.0,3324.2,0.96572442]
[1768670176812,0.14055457,3325.9,3324.2,0.96572442]
[1768670177013,0.96470588,3325.8,3324.2,0.96572442]
[1768670177214,0.96470588,3325.7,3324.2,0.96572442]
[1768670177415,0.96470588,3325.6,3324.2,0.96572442]
[1768670177616,0.96470588,3325.5,3324.2,0.96572442]
[1768670177916,0.14055457,3325.9,3324.2,0.96572442]
[1768670178115,0.96469849,3325.8,3324.2,0.96572442]
[1768670178302,0.96469849,3325.7,3324.2,0.96572442]
[1768670178518,0.96469849,3325.6,3324.2,1.1013]
[1768670178709,0.96469849,3325.5,3324.6,0.96572442]
[1768670178918,0.14055457,3325.9,3324.6,0.96572442]
[1768670179101,0.96467913,3325.8,3324.6,0.96572442]
[1768670179300,0.96467913,3325.7,3324.6,0.96572442]
[1768670179505,0.96467913,3325.6,3324.6,0.96572442]
[1768670179715,0.14055457,3325.9,3324.6,0.96572442]
[1768670179908,0.9646502,3325.8,3324.6,0.96572442]
[1768670180107,0.9646502,3325.7,3324.6,0.96572442]
[1768670180308,0.9646502,3325.6,3324.6,0.96572442]
[1768670180519,0.14055457,3325.9,3324.6,0.96572442]
[1768670180721,0.96463496,3325.8,3324.6,0.96572442]
[1768670181015,0.96463496,3325.7,3324.6,0.96572442]
[1768670181218,0.96463496,3325.6,3324.6,0.96572442]
[1768670181419,0.14055457,3325.9,3324.6,0.96572442]
[1768670181617,0.96462777,3325.8,3324.6,0.96572442]
[1768670181819,0.96462777,3325.7,3324.6,0.96572442]
[1768670182015,0.96462777,3325.6,3324.6,0.96572442]
[1768670182219,0.14055457,3325.9,3324.6,0.96572442]
[1768670182418,0.96462704,3325.8,3324.6,0.96572442]
[1768670182721,0.96462704,3325.7,3324.6,0.96572442]
[1768670182916,0.14055457,3325.9,3324.6,0.96572442]
[1768670183115,0.96462688,3325.8,3324.6,0.96572442]
[1768670183320,0.14055457,3325.9,3324.6,0.96572442]
[1768670183520,0.96463183,3325.8,3324.6,0.96572442]
[1768670183820,0.14055457,3325.9,3324.6,0.96572442]
[1768670184019,0.96463184,3325.8,3324.6,0.96572442]
[1768670184221,0.14055457,3325.9,3324.6,0.96572442]
[1768670184522,0.9646438,3325.8,3324.6,0.96572442]
[1768670184719,0.14055457,3325.9,3324.6,0.96572442]
[1768670184920,0.96464381,3325.8,3324.6,0.96572442]
[1768670185112,0.14055457,3325.9,3324.6,0.96572442]
[1768670185406,0.96463741,3325.8,3324.6,0.96572442]
[1768670185606,0.14055457,3325.9,3324.6,0.96572442]
[1768670185810,0.96466301,3325.8,3324.6,0.96572442]
[1768670186037,0.14055457,3325.9,3324.6,0.96572442]
[1768670192430,1.683,3326.5,3324.6,0.96572442]
[1768670192630,1.09926596,3326.4,3324.6,0.96572442]
[1768670192825,1.09575478,3326.3,3324.6,0.96572442]
[1768670193133,0.96429711,3326.2,3324.6,0.96572442]
[1768670193429,0.96429711,3326.1,3324.6,0.96572442]
[1768670193626,0.96429711,3326.0,3324.6,0.96572442]
[1768670193824,0.13145767,3326.3,3324.6,0.96572442]
[1768670194132,0.96422089,3326.2,3325.0,0.96572442]
[1768670194333,0.13145767,3326.3,3325.0,0.96572442]
[1768670194533,0.96409439,3326.2,3325.0,0.96572442]
[1768670194832,0.13145767,3326.3,3325.0,0.96572442]
[1768670195034,0.96409424,3326.2,3325.0,0.96572442]
[1768670195223,0.13145767,3326.3,3325.0,0.96572442]
[1768670195535,0.9639599,3326.2,3325.4,0.96512679]
[1768670195723,0.13145767,3326.3,3325.4,0.96512679]
[1768670195924,0.96395954,3326.2,3325.4,0.96512679]
[1768670196226,0.13145767,3326.3,3325.4,0.96512679]
[1768670199533,0.15035,3326.6,3325.4,0.96512679]
[1768670199734,0.96336862,3326.5,3325.4,0.96512679]
[1768670199934,0.96336862,3326.4,3325.4,0.96512679]
[1768670200138,0.15035,3326.6,3325.4,0.96512679]
[1768670200329,0.96326296,3326.5,3325.4,0.96512679]
[1768670200628,0.96326296,3326.4,3325.4,0.96512679]
[1768670200829,0.15035,3326.6,3325.4,0.96512679]
[1768670201042,0.96326296,3326.5,3325.4,0.96512679]
[1768670201245,0.15035,3326.6,3325.4,0.96512679]
[1768670201546,0.96318425,3326.5,3325.4,0.96512679]
[1768670201745,0.15035,3326.6,3325.4,0.96512679]
[1768670201947,0.96318425,3326.5,3325.4,0.96512679]
[1768670202148,0.15035,3326.6,3325.4,0.96512679]
[1768670202352,0.96312736,3326.5,3325.4,0.96512679]
[1768670202549,0.13145767,3326.8,3325.6,0.96512679]
[1768670202860,1.2109302,3326.7,3325.6,0.96512679]
[1768670203059,0.9631248,3326.6,3325.6,0.96512679]
[1768670203251,0.9631248,3326.5,3325.6,0.96512679]
[1768670203451,0.13145767,3326.8,3325.6,0.96512679]
[1768670203751,0.96301496,3326.7,3325.6,0.96512679]
[1768670203952,1.21078524,3326.6,3325.6,0.96512679]
[1768670204153,0.13145767,3326.8,3325.6,0.96512679]
[1768670204353,1.21070429,3326.7,3325.6,0.96512679]
[1768670204660,0.96294916,3326.6,3325.6,0.96512679]
[1768670204957,0.13145767,3326.8,3325.6,0.96512679]
[1768670205156,0.96294931,3326.7,3325.6,0.96512679]
[1768670205358,0.96294931,3326.6,3325.6,0.96512679]
[1768670205656,0.13145767,3326.8,3325.6,0.96512679]
[1768670205857,0.96136019,3326.7,3325.6,0.96512679]
[1768670206051,0.13145767,3326.8,3325.6,0.96512679]
[1768670206052,0.96136019,3326.6,3325.6,0.96512679]
[1768670206254,0.13145767,3326.8,3325.6,0.96512679]
[1768670206450,0.96134049,3326.7,3325.6,0.96512679]
[1768670206646,0.96134049,3326.6,3325.6,0.96512679]
[1768670206860,0.13145767,3326.7,3325.6,0.96512679]
[1768670207060,0.96134117,3326.6,3325.6,0.96512679]
[1768670207256,0.13145767,3326.7,3325.6,0.96512679]
[1768670207458,0.96133514,3326.6,3325.6,0.96512679]
[1768670207758,0.13145767,3326.7,3325.6,0.96512679]
[1768670207961,0.96133533,3326.6,3325.6,0.96512679]
[1768670208159,0.13145767,3326.7,3325.6,0.96512679]
[1768670208355,1.09280843,3326.6,3325.6,0.96512679]
[1768670208546,1.09280843,3326.6,3325.4,0.96512679]
[1768670208547,0.13145767,3326.6,3325.4,0.96512679]
[1768670212661,0.13145767,3326.6,3325.0,0.96512679]
[1768670212862,0.96151064,3326.5,3325.5,0.96512679]
[1768670213048,0.96151064,3326.4,3325.5,0.96512679]
[1768670213253,0.96151064,3326.3,3325.5,0.96512679]
[1768670213547,0.13145767,3326.6,3325.5,0.96512679]
[1768670213750,0.96159368,3326.5,3325.5,0.96512679]
[1768670213952,0.96159368,3326.4,3325.5,0.96512679]
[1768670214259,0.96159368,3326.3,3325.5,0.96512679]
[1768670214461,0.13145767,3326.6,3325.5,0.96512679]
[1768670214764,0.96169908,3326.5,3325.5,0.96512679]
[1768670214959,0.96169908,3326.4,3325.5,0.96512679]
[1768670215260,0.96169908,3326.3,3325.5,0.96512679]
[1768670215462,0.13145767,3326.6,3325.5,0.96512679]
[1768670215661,0.96183127,3326.5,3325.5,0.96512679]
[1768670215863,0.96183127,3326.4,3325.5,0.96512679]
[1768670216050,0.96183127,3326.3,3325.5,0.96512679]
[1768670216248,0.13145767,3326.6,3325.5,0.96512679]
[1768670216449,0.96192499,3326.5,3325.5,0.96512679]
[1768670216659,0.96192499,3326.4,3325.5,0.96512679]
[1768670216962,0.96192499,3326.3,3325.5,0.96512679]
[1768670217157,0.13145767,3326.6,3325.5,0.96512679]
[1768670217366,0.96198847,3326.5,3325.5,0.96512679]
[1768670217556,0.96198847,3326.4,3325.5,0.96512679]
[1768670217865,0.96198847,3326.3,3325.3,0.96512679]
[1768670218161,0.96198847,3326.2,3325.3,0.96512679]
[1768670218366,0.14021773,3326.5,3325.3,0.96512679]
[1768670218661,0.96210531,3326.4,3325.3,0.96512679]
[1768670218861,0.96210531,3326.3,3325.3,0.96512679]
[1768670219054,0.96210531,3326.2,3325.3,0.96512679]
[1768670219254,0.14021773,3326.5,3325.3,0.96512679]
[1768670219564,0.96220565,3326.4,3325.3,0.96512679]
[1768670219762,0.96220565,3326.3,3325.3,0.96512679]
[1768670219956,0.96220565,3326.2,3325.3,0.96512679]
[1768670220157,0.14021773,3326.5,3325.3,0.96512679]
[1768670220463,0.96230693,3326.4,3325.3,0.96512679]
[1768670220663,0.96230693,3326.3,3325.3,0.96512679]
[1768670220862,0.96230693,3326.2,3325.3,0.96512679]
[1768670221064,0.14021773,3326.5,3325.3,0.96512679]
[1768670221265,0.96243312,3326.4,3325.3,0.96512679]
[1768670221466,0.14021773,3326.5,3325.3,0.96512679]
[1768670221467,0.96243312,3326.3,3325.3,0.96512679]
[1768670221764,0.96243312,3326.2,3325.3,0.96512679]
[1768670221966,0.14021773,3326.5,3325.3,0.96512679]
[1768670222167,0.14021773,3326.5,3325.5,0.96512679]
[1768670222168,0.96245181,3326.4,3325.5,0.96512679]
[1768670222461,0.96245181,3326.3,3325.7,0.96512679]
[1768670222667,1.97355773,3326.9,3325.7,0.96512679]
[1768670222853,0.96259247,3326.8,3325.7,0.96512679]
[1768670223164,0.96259247,3326.7,3325.7,0.96512679]
[1768670223367,0.96259247,3326.6,3325.7,0.96512679]
[1768670223668,0.14021773,3326.8,3325.7,0.96512679]
[1768670223865,0.96279006,3326.7,3325.7,0.96512679]
[1768670224065,0.96279006,3326.6,3325.7,0.96512679]
[1768670224265,0.96279006,3326.5,3325.7,0.96512679]
[1768670224464,0.14021773,3326.8,3325.7,0.96512679]
[1768670224656,0.9628881,3326.7,3325.7,0.96512679]
[1768670224856,0.9628881,3326.6,3325.7,0.96512679]
[1768670225060,0.9628881,3326.5,3325.7,0.96512679]
[1768670225260,0.14021773,3326.8,3325.7,0.96512679]
[1768670225461,1.10317344,3326.7,3325.7,0.96512679]
[1768670225661,0.96295571,3326.6,3325.7,0.96512679]
[1768670225862,0.96295571,3326.5,3325.5,0.96512679]
[1768670226160,0.14021773,3326.7,3325.5,0.96512679]
[1768670226464,0.96298593,3326.6,3325.5,0.96512679]
[1768670226666,0.96298593,3326.5,3325.5,0.96512679]
[1768670226862,0.14021773,3326.7,3325.5,0.96512679]
[1768670227055,0.96297593,3326.6,3325.5,0.96512679]
[1768670227260,0.96297593,3326.5,3325.5,0.96512679]
[1768670227464,0.14021773,3326.7,3325.5,0.96512679]
[1768670227656,0.96300023,3326.6,3325.5,0.96512679]
[1768670227859,0.96300023,3326.5,3325.5,0.96512679]
[1768670228156,0.14021773,3326.7,3325.5,0.96512679]
[1768670228356,0.96301839,3326.6,3325.5,0.96512679]
[1768670228567,0.96301839,3326.5,3325.5,0.96512679]
[1768670228770,0.14021773,3326.7,3325.5,0.96512679]
[1768670228965,0.96300886,3326.6,3325.5,0.96512679]
[1768670229164,0.96300886,3326.5,3325.5,0.96512679]
[1768670229365,0.14021773,3326.7,3325.5,0.96512679]
[1768670229563,0.96302329,3326.6,3325.5,0.96512679]
[1768670229762,0.96302329,3326.5,3325.5,0.96512679]
[1768670229960,0.14021773,3326.7,3325.5,0.96512679]
[1768670230159,0.96302361,3326.6,3325.5,0.96512679]
[1768670230361,0.96302361,3326.5,3325.5,0.96512679]
[1768670230654,0.14021773,3326.7,3325.5,0.96512679]
[1768670230860,0.96302835,3326.6,3325.5,0.96512679]
[1768670231060,0.96302835,3326.5,3325.5,0.96512679]
[1768670231261,0.14021773,3326.7,3325.5,0.96512679]
[1768670231460,0.96303924,3326.6,3325.5,0.96512679]
[1768670231660,0.96303924,3326.5,3325.5,0.96512679]
[1768670231860,0.14021773,3326.7,3325.5,0.96512679]
[1768670232060,0.96303924,3326.6,3325.5,0.96512679]
[1768670232264,0.96303924,3326.5,3325.5,0.96512679]
[1768670232465,0.14021773,3326.7,3325.5,0.96512679]
[1768670232667,0.96305541,3326.6,3325.5,0.96512679]
[1768670232866,0.96305541,3326.5,3325.5,0.96512679]
[1768670233064,0.14021773,3326.7,3325.5,0.96512679]
[1768670233364,0.96305044,3326.6,3325.6,0.96512679]